Cogmind - Beta 15 @@@ ROGUE MODE // 2025.08.17 @ 16:49:00 Player: puppuppit Result: Self-destructed Performance ------------- Evolutions (2) 1000 Regions Visited (5) 1000 Robots Destroyed (115) 575 Value Destroyed (2858) 2858 Prototype IDs (1) 20 Alien Tech Used (0) 0 Bonus (252) 252 TOTAL SCORE: 5705 Bonus ------- High Alert Combat Kills 252 Cogmind --------- Core Integrity 443/550 Matter 300/300 Energy 290/290 System Corruption 0% Temperature Cool (0) Movement Treading (160) Location -8/Materials Parts ------- > --- POWER (1) -------- Improved Deuterium Engine > --- PROPULSION (3) --- Light Treads Light Treads Light Treads > --- UTILITY (3) ------ Improved Heat Sink Large Storage Unit Hacking Suite > --- WEAPON (4) ------- Autogun Minigun Minigun Minigun > --- INVENTORY (15) --- Improved Deuterium Engine Improved Deuterium Engine Light Treads Airjet High-capacity Matter Pod (200) High-capacity Matter Pod (63) Advanced Targeting Computer Shield Generator Assault Rifle Light Assault Rifle Heavy Assault Rifle Heavy Assault Rifle Heavy Assault Rifle Rocket Launcher Rocket Launcher Peak State ------------ > --- POWER ------------ Improved Deuterium Engine > --- PROPULSION ------- Light Treads Light Treads Light Treads > --- UTILITY ---------- Large Storage Unit Hacking Suite Hacking Suite > --- WEAPON ----------- Autogun Minigun Minigun Minigun > --- INVENTORY -------- Improved Deuterium Engine Improved Deuterium Engine Light Fission Core Light Treads Airjet Improved Heat Sink High-capacity Matter Pod High-capacity Matter Pod Advanced Targeting Computer Shield Generator Light Assault Rifle Heavy Assault Rifle Heavy Assault Rifle Heavy Assault Rifle Rocket Launcher [Rating: 28] Favorites ----------- Power Improved Deuterium Engine Engine Improved Deuterium Engine Power Core Light Nuclear Core Propulsion Light Treads Treads Light Treads Wheel Wheel Utility Large Storage Unit Device Improved Heat Sink Storage Large Storage Unit Processor Transport Network Coupler Hackware Hacking Suite Protection Light Armor Plating Weapon Minigun Energy Gun EM Pulse Gun Energy Cannon Beam Cannon Ballistic Gun Minigun Launcher Rocket Launcher Build | -11 -10 -10 -10 -9 -8 ------- Run | Yrd Mat Min Exi Min Mat Slots Evolved 4 | . . . . . 4 Power . | . . . . . . Propulsion 1 | . . . . . 1 Utility 1 | . . . . . 1 Weapon 2 | . . . . . 2 Parts Attached 54 | 8 9 4 1 5 27 Power 6 | 1 1 . . . 4 Engine 5 | 1 . . . . 4 Core 1 | . 1 . . . . Reactor . | . . . . . . Propulsion 14 | 2 2 1 . 3 6 Treads 5 | 2 . . . . 3 Leg . | . . . . . . Wheel 9 | . 2 1 . 3 3 Hover . | . . . . . . Flight . | . . . . . . Utility 13 | 2 1 1 1 . 8 Device 4 | 1 . 1 . . 2 Storage 3 | 1 . . 1 . 1 Processor 1 | . . . . . 1 Hackware 3 | . 1 . . . 2 Protection 2 | . . . . . 2 Artifact . | . . . . . . Weapon 21 | 3 5 2 . 2 9 Energy Gun 5 | 3 1 1 . . . Energy Cannon 2 | . 2 . . . . Ballistic Gun 12 | . 1 1 . 2 8 Ballistic Cannon . | . . . . . . Launcher 2 | . 1 . . . 1 Special Weapon . | . . . . . . Impact Weapon . | . . . . . . Slashing Weapon . | . . . . . . Piercing Weapon . | . . . . . . Special Melee Weapon . | . . . . . . Unidentified Prototypes 1 | . . . . . 1 Corrupted Parts 1 | . 1 . . . . System Corruption 6 | . 6 . . . . Parts Lost 13 | . 6 4 . 3 . Power 2 | . 2 . . . . Propulsion 6 | . 2 1 . 3 . Utility 1 | . . 1 . . . Weapon 4 | . 2 2 . . . Highest Loss Streak 4 | . 3 4 . 3 . To Critical Strikes 1 | . . . . 1 . Average Backups 10 | 1 6 6 7 8 14 Power 1 | . . . 1 1 2 Propulsion . | . . . . . 1 Utility 3 | 1 3 4 3 3 4 Weapon 3 | . 1 1 2 3 6 Tool/Special . | . . . . . . Unused Backups 21 | . 3 . 2 1 15 Power 4 | . . . . 1 3 Propulsion 3 | . 1 . . . 2 Utility 10 | . 2 . 2 . 6 Weapon 4 | . . . . . 4 Tool/Special . | . . . . . . Average Slot Usage (%) 87 | . 92 70 59 63 99 Engine 4 | . 1 . . . 8 Core 2 | . 7 . . . . Treads 15 | . 22 . . . 22 Wheel 9 | . 4 24 28 16 4 Device 9 | . 11 8 14 14 6 Storage 11 | . 14 14 14 14 9 Hackware 2 | . 2 2 . . 3 Protection 2 | . . . . . 5 Energy Gun 5 | . 17 8 1 . . Energy Cannon 1 | . 5 8 . . . Ballistic Gun 19 | . 4 2 1 18 35 Peak Build Rating 28 | 9 12 9 9 11 28 Average Rating 14 | 6 10 7 7 7 24 On Entrance 7 | . 9 9 9 7 11 Naked Turns . | . . . . . . Heaviest Build 50 | 13 15 11 21 25 50 Greatest Support 60 | 40 40 20 20 32 60 Greatest Overweight (x) 7 | . 3 . 1 7 1 Average Overweight (x) . | . . . . 1 . Largest Inventory Capacity 15 | 8 8 8 15 15 15 Average Capacity 12 | 7 8 8 9 15 15 Most Carried 15 | 4 8 7 8 15 15 Average Carried 10 | 1 6 6 7 8 14 Final Capacity 15 | 8 8 8 15 15 15 Final Carried 15 | 4 7 7 8 15 15 Class Distribution -------------------- 49% | Mutant 19% | Scavenger-Tank 11% | Scavenger-Mutant 10% | Tank 9% | Scavenger-Gunner Dominant Class ---------------- Mutant | -10/Materials Scavenger-Mutant | -10/Mines Mutant | -10/Exiles Scavenger-Mutant | -9/Mines Scavenger-Tank | -8/Materials Resources | -11 -10 -10 -10 -9 -8 ----------- Run | Yrd Mat Min Exi Min Mat Matter Collected 3321 | 327 688 160 . 304 1842 Remotely . | . . . . . . Salvage Created 3956 | 178 1211 100 . 340 2127 Parts 250 | 21 79 8 . 16 126 Haulers Intercepted 3 | . . . . . 3 Recyclers Shooed 2 | . 1 . . 1 . Parts Field Recycled . | . . . . . . Retrieved Matter . | . . . . . . Parts Self-Destructed . | . . . . . . Prevented . | . . . . . . Kills | -11 -10 -10 -10 -9 -8 ------- Run | Yrd Mat Min Exi Min Mat Combat Hostiles Destroyed 71 | . 21 5 . 3 42 Guns 43 | . 11 . . 1 31 Cannons 9 | . 7 2 . . . AOE 19 | . 3 3 . 2 11 Classes Destroyed 13 | 3 5 . . 1 4 Worker 8 | 2 4 . . 2 . Builder 9 | . 2 . . 2 5 Tunneler 8 | 4 2 . . . 2 Hauler 3 | . . . . . 3 Recycler 8 | 1 2 . . 3 2 Operator 3 | . 1 . . . 2 Watcher 6 | . 3 . . . 3 Swarmer 16 | . 3 3 . 2 8 Grunt 46 | . 18 2 . . 26 Duelist 2 | . . . . . 2 Sentry 4 | . . . . . 4 Hunter 2 | . . . . . 2 Assembled 1 | . . . . 1 . Best Kill Streak 10 | 5 8 3 . 4 10 Combat Bots Only 9 | . 4 3 . 2 9 Max Kills in Single Turn 3 | 2 2 3 . 2 3 Gunslinging 1 | . 1 . . . 1 Exploded 3 | . 2 3 . 2 3 Melee . | . . . . . . Uniques/NPCs Destroyed . | . . . . . . Combat | -11 -10 -10 -10 -9 -8 -------- Run | Yrd Mat Min Exi Min Mat Hostile Shots Fired 228 | . 85 20 . 12 111 Missed 64 | . 19 5 . 4 36 Hits 164 | . 66 15 . 8 75 Melee 2 | . . . . 1 1 Projectile 162 | . 66 15 . 7 74 Critical Strikes 9 | . 3 2 . 1 3 Damage Taken 2218 | . 895 217 . 126 980 Core 340 | . 165 48 . 20 107 Absorbed by Shields 142 | . . . . . 142 Regen/Repaired (Parts) 42 | . 42 . . . . Core Remaining (%) 53 | 100 . . . 6 . Volleys Fired 249 | 8 88 18 . 38 97 Largest 4 | 2 2 2 . 2 4 Hottest 120 | 90 120 120 . 40 108 Shots Fired 637 | 16 158 23 . 76 364 Gun 548 | 16 109 2 . 75 346 Cannon 67 | . 47 20 . . . Launcher 22 | . 2 1 . 1 18 Special . | . . . . . . Kinetic 481 | . 59 1 . 75 346 Thermal 78 | 10 47 21 . . . Explosive 22 | . 2 1 . 1 18 Electromagnetic 56 | 6 50 . . . . Robot Hit Streak 15 | 5 7 4 . 15 12 Robot Miss Streak 5 | 1 5 3 . 5 5 Penetration Max . | . . . . . . Secondary Targets 6 | . 2 . . . 4 Max Gunslinging Chain 2 | . 1 . . . 2 Shots Hit Robots 345 | 10 87 12 . 50 186 Core Hits 197 | 8 48 7 . 23 111 Critical Kills 2 | . 1 . . . 1 Critical Parts Destroyed 3 | . . . . 1 2 Critical Strikes 5 | . 1 . . 1 3 Destroy 5 | . 1 . . 1 3 Melee Attacks . | . . . . . . Impact . | . . . . . . Slashing . | . . . . . . Piercing . | . . . . . . Sneak Attacks . | . . . . . . Combat Hostiles . | . . . . . . Follow-up Attacks . | . . . . . . Damage Inflicted 6909 | 153 1533 324 . 466 4433 Guns 4298 | 153 883 . . 394 2868 Cannons 699 | . 484 215 . . . Explosions 1912 | . 166 109 . 72 1565 Melee . | . . . . . . Ramming . | . . . . . . Kinetic 3716 | . 454 . . 394 2868 Thermal 839 | 74 550 215 . . . Explosive 1846 | . 100 109 . 72 1565 Electromagnetic 508 | 79 429 . . . . Impact . | . . . . . . Slashing . | . . . . . . Piercing . | . . . . . . Highest Corruption 6 | . 6 6 6 6 . Average Corruption 6 | . 6 6 6 6 . Corruption Purged . | . . . . . . Corruption Blocked . | . . . . . . Effects 60 | . 33 5 3 19 . Message Errors 16 | . 6 1 2 7 . Matter Fused 15 | . 8 . 1 6 . Heat Flow Errors 6 | . 3 1 . 2 . Energy Discharges 3 | . 3 . . . . Parts Rejected 1 | . . 1 . . . Data Loss (minor) 7 | . 5 1 . 1 . Data Loss (major) 4 | . 3 1 . . . Misfires 4 | . 2 . . 2 . Alerts 1 | . 1 . . . . Weapon Failures 3 | . 2 . . 1 . Overload Shots . | . . . . . . Overflow Damage 90 | . 14 . . . 76 Projectiles 3 | . 3 . . . . Explosions 87 | . 11 . . . 76 Melee . | . . . . . . Knockbacks . | . . . . . . Impact . | . . . . . . Kinetic . | . . . . . . Secondary . | . . . . . . Self-Inflicted Damage 84 | . 39 . . . 45 Shots 2 | . 1 . . . 1 Rammed . | . . . . . . Targets Rammed . | . . . . . . Kicked . | . . . . . . Crushed . | . . . . . . Highest Temperature 377 | 120 240 377 . 221 208 Average Temperature 76 | 43 61 209 . 116 68 Received Heat Transfer 1013 | . 450 159 . . 404 Effects 2 | . . 2 . . . Matter Decay 1 | . . 1 . . . Short Circuit 1 | . . 1 . . . Siege Activations . | . . . . . . Martial Activations . | . . . . . . Shielding Activations . | . . . . . . Robots Disrupted . | . . . . . . Combat Hostiles . | . . . . . . Robots Corrupted . | . . . . . . Combat Hostiles . | . . . . . . Parts Fried 2 | . 2 . . . . Impact Corruptions . | . . . . . . Robots Melted . | . . . . . . Combat Hostiles . | . . . . . . Parts Melted 1 | . . 1 . . . Heat Transferred 1741 | 198 1099 444 . . . Parts Sabotaged . | . . . . . . Parts Stolen . | . . . . . . Parts Stripped . | . . . . . . Power Chain Reactions 1 | . 1 . . . . Alert | -11 -10 -10 -10 -9 -8 ------- Run | Yrd Mat Min Exi Min Mat Maximum Alert Level 3 | . 1 . . . 3 Low Security (%) 61 | 100 92 100 . 100 12 Level 1 15 | . 7 . . . 31 Level 2 16 | . . . . . 39 Level 3 7 | . . . . . 17 Level 4 . | . . . . . . Level 5 . | . . . . . . High Security . | . . . . . . Max Security . | . . . . . . Peak Influence 756 | 25 329 154 . 55 756 Initial 123 | . . 123 . . . Average 197 | 5 76 109 . 4 400 Influence Increases 2254 | 35 742 131 . 90 1256 Destroy 0b10 Robot/C 1400 | . 420 100 . 40 840 Destroy 0b10 Robot/NC 225 | 35 70 . . 35 85 Destroy Leader 308 | . 96 20 . 10 182 Allied During Kill 2 | . . . . . 2 Successful Hack 49 | . 39 . . . 10 Select Force Hacks 60 | . 60 . . . . Disable Machine 30 | . 15 . . . 15 Destroy Structure 135 | . 27 11 . 5 92 Partial Spotted 15 | . 15 . . . . Lose Combat Pursuer 30 | . . . . . 30 Influence Decreases 1530 | 35 425 324 124 90 532 Entered New Map 318 | . . 194 124 . . Time Decay 1092 | 35 365 90 . 90 512 Lost Part 100 | . 60 40 . . . Lost Ally 20 | . . . . . 20 Squads Dispatched 16 | . 5 . . . 11 Investigation 7 | . 4 . . . 3 Extermination . | . . . . . . Reinforcement 5 | . 1 . . . 4 Assault 1 | . . . . . 1 Garrison 3 | . . . . . 3 Intercept . | . . . . . . Searches Triggered . | . . . . . . Construction Impeded 2 | . . . . . 2 Haulers Reinforced . | . . . . . . Active Scanning Responses . | . . . . . . Cargo Convoy Interrupts . | . . . . . . Stealth | -11 -10 -10 -10 -9 -8 --------- Run | Yrd Mat Min Exi Min Mat Distress Signals 9 | . 5 . . . 4 Communications Jammed . | . . . . . . Distress Signals . | . . . . . . Times Spotted 104 | . 29 4 . 13 58 Peak Tracking Total 9 | . 4 3 . 9 6 Tactical Retreats 3 | . . . . 2 1 Traps | -11 -10 -10 -10 -9 -8 ------- Run | Yrd Mat Min Exi Min Mat Traps Triggered 2 | . 2 . . . . Indirectly . | . . . . . . Trap Hack Attempts . | . . . . . . Triggered . | . . . . . . Disarmed . | . . . . . . Reprogrammed . | . . . . . . Reused . | . . . . . . Traps Extracted . | . . . . . . Installed . | . . . . . . Triggered . | . . . . . . Machines | -11 -10 -10 -10 -9 -8 ---------- Run | Yrd Mat Min Exi Min Mat Machines Disabled 2 | . 1 . . . 1 Max in Single Turn 1 | . 1 . . . 1 Machines Repaired . | . . . . . . Machines Dismantled . | . . . . . . Machines Sabotaged . | . . . . . . Overloaded Fab Kills . | . . . . . . Hacking | -11 -10 -10 -10 -9 -8 --------- Run | Yrd Mat Min Exi Min Mat Machines Accessed 23 | . 11 . 1 . 11 Terminals 16 | . 8 . . . 8 Fabricators . | . . . . . . Repair Stations 1 | . 1 . . . . Recycling Units 3 | . 2 . . . 1 Scanalyzers 1 | . . . . . 1 Garrison Access 1 | . . . . . 1 Total Hacks 79 | . 37 . 1 . 41 Successful 51 | . 24 . 1 . 26 Failed 28 | . 13 . . . 15 Catastrophic 1 | . . . . . 1 Database Lockouts . | . . . . . . Manual 68 | . 33 . . . 35 Terminals 58 | . 29 . . . 29 Fabricators . | . . . . . . Repair Stations 3 | . 3 . . . . Recycling Units 9 | . 5 . . . 4 Scanalyzers 4 | . . . . . 4 Garrison Access 4 | . . . . . 4 Terminal Hacks 10 | . 6 . 1 . 3 Record 1 | . . . 1 . . Robot Analysis 8 | . 5 . . . 3 Terminal Index 1 | . 1 . . . . Fabricator Hacks . | . . . . . . Repair Station Hacks 2 | . 2 . . . . Scan Component 1 | . 1 . . . . Repair 1 | . 1 . . . . Recycling Unit Hacks 2 | . 1 . . . 1 Retrieve Components 2 | . 1 . . . 1 Scanalyzer 4 | . . . . . 4 Insert Component 2 | . . . . . 2 Analyze 2 | . . . . . 2 Garrison Access Hacks 1 | . . . . . 1 Unlock Access 1 | . . . . . 1 Unauthorized Hacks 32 | . 15 . . . 17 Terminals 24 | . 11 . . . 13 Botnet 9 | . 4 . . . 5 Operators 2 | . 1 . . . 1 Skim 13 | . 6 . . . 7 Fabricators . | . . . . . . Repair Stations 1 | . 1 . . . . Patch 1 | . 1 . . . . Recycling Units 5 | . 3 . . . 2 Recyclers 2 | . 1 . . . 1 Mask 1 | . . . . . 1 Tunnel 2 | . 2 . . . . Scanalyzers . | . . . . . . Garrison Access 2 | . . . . . 2 Reprogram 1 | . . . . . 1 Intercept 1 | . . . . . 1 Data Cores Recovered . | . . . . . . Used . | . . . . . . Hacking Detections 20 | . 10 . . . 10 Full Trace Events 3 | . 1 . . . 2 Feedback Events . | . . . . . . Feedback Blocked . | . . . . . . Robot Schematics Acquired . | . . . . . . Robots Built . | . . . . . . Authchips . | . . . . . . Time . | . . . . . . Total Robot Build Rating . | . . . . . . Part Schematics Acquired 2 | . . . . . 2 Parts Built . | . . . . . . Authchips . | . . . . . . Time . | . . . . . . Total Part Build Rating . | . . . . . . Parts Repaired 1 | . 1 . . . . Time 26 | . 26 . . . . Parts Recycled . | . . . . . . Recycled Matter . | . . . . . . Retrieved Matter . | . . . . . . Retrieved Components 4 | . 2 . . . 2 Parts Scanalyzed 2 | . . . . . 2 Part Schematics Acquired 2 | . . . . . 2 Parts Damaged 1 | . . . . . 1 Bothacking | -11 -10 -10 -10 -9 -8 ------------ Run | Yrd Mat Min Exi Min Mat Used RIF Installer . | . . . . . . Robots Hacked . | . . . . . . Non-combat . | . . . . . . Combat . | . . . . . . Robot Hacks Applied . | . . . . . . Relay Couplers Released . | . . . . . . Fabnet Peak Effective % . | . . . . . . Robots Rewired . | . . . . . . Allies Hacked . | . . . . . . Hacks Repelled . | . . . . . . Allies | -11 -10 -10 -10 -9 -8 -------- Run | Yrd Mat Min Exi Min Mat Total Allies 1 | . . . . . 1 Largest Group 1 | . . . . . 1 Highest-Rated Group 16 | . . . . . 16 Highest-Rated Ally 16 | . . . . . 16 Total Orders . | . . . . . . Ally Attacks 4 | . . . . . 4 Total Damage 34 | . . . . . 34 Kills . | . . . . . . Allies Corrupted . | . . . . . . Allies Melted . | . . . . . . Intel | -11 -10 -10 -10 -9 -8 ------- Run | Yrd Mat Min Exi Min Mat Active Infowar (turns) 1386 | 86 918 . . . 382 Terrain 1004 | 86 918 . . . . T.N.C. 382 | . . . . . 382 Robot Analysis Total 8 | . 5 . . . 3 Derelict Logs Recovered 1 | . . . . 1 . Drone Launches . | . . . . . . Drone Recoveries . | . . . . . . Exploration | -11 -10 -10 -10 -9 -8 ------------- Run | Yrd Mat Min Exi Min Mat Turns Passed 3882 | 167 1116 181 184 686 1548 Spaces Moved 2153 | 81 580 162 211 413 706 Core 62 | 1 2 . . 59 . Treads 1097 | 80 433 . . . 584 Legs . | . . . . . . Wheels 994 | . 145 162 211 354 122 Hover . | . . . . . . Flight . | . . . . . . Fastest Speed 50 | 50 80 80 80 90 86 Average Speed 133 | 158 140 80 82 135 151 Slowest Speed 400 | 160 200 80 95 400 240 Overloaded Moves . | . . . . . . Propulsion Burnouts . | . . . . . . Robots Hopped . | . . . . . . Potential Cave-ins . | . . . . . . Cave-ins Triggered . | . . . . . . Exploration Rate (%) 49 | 4 91 30 49 69 55 Regions Visited 5 Branch Regions 3 Pre-discovered Areas 5 | . 2 . 1 . 2 Known Exits Taken . | . . . . . . Unknown Exits Taken 5 | 1 1 1 1 1 . Scrap Searched 2 | . . 1 . 1 . Spaces Dug . | . . . . . . Terrain Destroyed 134 | . 19 11 . 11 93 Melee . | . . . . . . Projectile . | . . . . . . AOE 134 | . 19 11 . 11 93 Terrain Rammed . | . . . . . . Walls Destroyed . | . . . . . . Machines Disabled . | . . . . . . Actions | -11 -10 -10 -10 -9 -8 --------- Run | Yrd Mat Min Exi Min Mat Total 2724 | 100 724 189 224 480 1007 Wait 151 | . 29 . . 5 117 Move 2148 | 80 579 161 210 412 706 Hop . | . . . . . . Pick Up 48 | 3 9 1 5 10 20 Fast Attach 24 | 8 5 4 . 3 4 Attach 17 | . 3 3 . 5 6 Detach 9 | 1 1 2 1 3 1 Swap 38 | . 4 . 1 2 31 Drop 40 | . 6 . 7 2 25 Fire 249 | 8 88 18 . 38 97 Melee . | . . . . . . Ram . | . . . . . . Kick . | . . . . . . Crush . | . . . . . . Escape Stasis . | . . . . . . Rewire . | . . . . . . Trap . | . . . . . . Miscellaneous . | . . . . . . Route ------- -11/Scrapyard -10/Materials (discovered 4 exits: [*Mat x3] / [*Min]) -10/Mines -10/Exiles -9/Mines -8/Materials (discovered 4 exits: *Fac x3 / Gar) History --------- Turn | Location | Event 18 | -11/Scrapyard | Discovered new exit (range 15) 168 | -11/Scrapyard | Entered Materials 314 | -10/Materials | Build established: Mutant 350 | -10/Materials | Repaired EM Pulse Gun 380 | -10/Materials | Discovered new exit (range 16) 532 | -10/Materials | Discovered new exit (range 16) 917 | -10/Materials | Lost 3 parts (1p2w) 1110 | -10/Materials | Core integrity fell below 50% 1208 | -10/Materials | Discovered new exit (range 15) 1274 | -10/Materials | Discovered new exit (range 12) 1284 | -10/Materials | Entered Mines 1329 | -10/Mines | Core integrity fell below 20% 1361 | -10/Mines | Lost 4 parts (1n1u2w) 1461 | -10/Mines | Deemed a non-threat by the Exiles lab entrance 1462 | -10/Mines | Discovered new exit (range 5) 1465 | -10/Mines | Entered Exiles 1488 | -10/Exiles | Met 8R-AWN 1554 | -10/Exiles | Met EX-HEX 1585 | -10/Exiles | Met EX-DEC 1588 | -10/Exiles | Learned location of Zion (-7) 1631 | -10/Exiles | Discovered new exit (range 14) 1649 | -10/Exiles | Entered Mines 1656 | -9/Mines | Received a Rocket Launcher from a helpful Derelict 1901 | -9/Mines | Learned Materials trap positions 1908 | -9/Mines | Assembled infested the area 1913 | -9/Mines | Assisted by a Guerilla fighting off Assembled 1994 | -9/Mines | Lost 3 parts (3n) 2324 | -9/Mines | Discovered new exit (range 10) 2335 | -9/Mines | Entered Materials 2335 | -8/Materials | Evolved 4 slots: Propulsion x1, Utility x1, Weapon x2 2336 | -8/Materials | Loaded intel: 23 trap records 2669 | -8/Materials | Build established: Scavenger-Tank 2864 | -8/Materials | Discovered new exit (range 15) 3032 | -8/Materials | Destroyed 8 combat bots 3272 | -8/Materials | Build established: Tank 3512 | -8/Materials | Identified exit to Garrison 3535 | -8/Materials | First assault squad dispatched 3571 | -8/Materials | Garrison activated, responded to threat 3638 | -8/Materials | Destroyed 9 combat bots 3731 | -8/Materials | Learned location of Extension (-4) 3791 | -8/Materials | Build established: Scavenger-Gunner 3856 | -8/Materials | Identified exit to Factory 3879 | -8/Materials | Learned location of 1 exit from Storage 3883 | -8/Materials | Self-destructed Last Messages --------------- Scanning: Adv. Targeting Computer... Schematic downloaded. 03710_ ALERT: Suspicious activity at Scanalyzer M002. Dispatching Investigation squad. 03713_ Dropped Broken Lgt. Fission Core. 03715_ Acquired Rocket Launcher. 03729_ G-47 Trooper destroyed. 03731_ >> SKIM: World map updated: -4/Extension. 03731_ G-47 Trooper suffers critical hit (Destroy). 03731_ G-47 Trooper destroyed. 03736_ Acquired 52 matter. 03743_ R-06 Scavenger collects Particle Gun. 03746_ Destroyed Wheel. 03752_ Acquired 54 matter. 03752_ U-05 Engineer builds a Door. 03755_ R-06 Scavenger collects Aluminum Leg. 03782_ >> SKIM: Stored Lower Caves entrances (x1). 03825_ >> SKIM: World map updated: -9/Recycling. 03856_ >> SKIM: Loading 2 Factory entrances... 03879_ >> SKIM: Stored Storage exits (x1). Map ----- +----------------------------------------------------+ | ?????????????????????????????????????????????????? | | ?????????????????????????????????????????????????? | | ?????????????????????????????????????????????????? | | ?????????????????????????????????????????????????? | | ?????????????????????????????????????????????????? | | ?????????????????????????????????????????????????? | | ?????????????????????????????????????????????????? | | ?????????????????????????????????????????????????? | | ?????????????????????????????????????????????????? | | ?????????????????????????????????????????????????? | | ?????????????????????????????????????????????????? | | ?????????????????????????????????????????????????? | | ?????????????????????????????????????????????????? | | ?????????????????#######?????????????????????????? | | ????????o????????# ?????????????????????????? | | ?????????????????# "S #?????????????????????????? | | ????? ???????????# """ #???????????? ??????????? | | ????# ?????????# "" #???????????? ??????????? | | ????# ?????????# ############? ??????????? | | ????# ????###??# ## ## #?????^^??? | | ????# #####T#### ?# ## ##??????^?? | | ????+ ###+#### """ """ # #????????? | | ????# # """ """ # ! #????????? | | ????# ^ ^ + """ """ # % +????????? | | ????# ^ # # ?????????? | | ????# ###+####@ # ?^^??????? | | ????#^^""" """ # ==! ## [ ## #???^?????? | | ????# """ """ # ############# #?????????? | | ??### " """ # #???????????# #?????????? | | ?## # ^ # "" #???????????# #?????????? | | ?# # = # """#???????????# #??#####??? | | ## # "" =""" # S"##########??# #??# #??? | | "G> %%"" # * ## ?## ##?# #### | | "" *""" ######## [ # #?# | | = ==%= #??????# # #?# | | =[! ==! = #??????# + T #?# | | [=* !%* #+#####??????# # #?# | | ! # ##+# # #??????# # #?# | | ## / #""" #??????# ?## ##?# #### | | ?# T #""" #??????# ??# #??# #??? | | ?# =[*#""" #??????########???# #??# #??? | | ?# =* #""" #?????????????????# [#??# #??? | | ?" =* #""" #?????????????????# #??# #??? | | ?# # #?????????????????# **#??# #??? | | ?# #???? #?????????????????#!* #??# #??? | | ?+ #???????????????????????#***#??# #??? | | ?####+######???????????????????????# *#??# #??? | | ????# #????????????????????????????# #??# #??# | | ????# #????????????????????????????# #??# #?## | | ????# #????????????????############# #??# #?# | +----------------------------------------------------+ Best States ------------- Heat Dissipation 45 Energy Generation 16 Energy Capacity 290 Matter Stores 300 Matter Capacity 300 Sight Range 16 Terrain Scan Range 16 Terrain Scan Density 10 Armor Coverage 150 Evasion (%) 44 Recoil Reduction 3 Offensive Hacking 20 Authchip Count 1 Item Schematics ----------------- Lgt. Fission Core | -8/Materials | Scanalyzed Adv. Targeting Computer | -8/Materials | Scanalyzed Robot Schematics ------------------ None Fabricated ------------ Nothing Repaired ---------- EM Pulse Gun | 35% | -10/Materials Alien Tech Used ----------------- None Achievements -------------- None Challenges ------------ None Game ------ Seed AlphaHackingRailgun Manual? 0 Play Time 00:26:30 Cumulative 541.2 hours Start 2025.08.17 @ 16:25:30 End 2025.08.17 @ 16:49:00 Sessions 1 Manual Loads 0 Difficulty Rogue Special Mode None Game No. 285 Rogue 285 Adventurer 0 Explorer 0 Win Type - Total 6 Types 3/0/1/1/0/0/0/0/0/1 Lore% 86 Gallery% 77 Achievement% 68 Wizard Run 0 Options --------- Layout 2 ASCII 0 Keyboard 1 Movement Vi Keybinds 0 Fullscreen 1 Font 16/Tamsyn Map View 55x47 Zoom Use 0% Tactical HUD 1 Map Filters NONE Filters NONE Steam 0 RUN: 0d75d259-0ddd-439d-88eb-bfa2429626ac